bitfinex/quotes_BTCUSD_20250619
["timestamp","ask_amount","ask_price","bid_price","bid_amount"]
[1750375385471,29.53996238,104970.0,104960.0,0.23074701]
[1750375385764,29.34943176,104970.0,104960.0,0.23074701]
[1750375386609,29.33990523,104970.0,104960.0,0.23074701]
[1750375387202,29.33990706,104970.0,104960.0,0.23074701]
[1750375387510,29.3494335,104970.0,104960.0,0.23074701]
[1750375388738,29.3494335,104970.0,104960.0,0.22122021]
[1750375389178,29.53043832,104970.0,104960.0,0.21169332]
[1750375389465,29.51138618,104970.0,104960.0,0.21169332]
[1750375389675,29.51138656,104970.0,104960.0,0.21169332]
[1750375390534,29.65758022,104970.0,104960.0,0.00209004]
[1750375390751,29.64805378,104970.0,104960.0,0.00209004]
[1750375391431,29.64805378,104970.0,104950.0,0.001]
[1750375391432,0.20007603,104960.0,104950.0,0.001]
[1750375391690,4.1879609,104960.0,104950.0,0.00113476]
[1750375392521,4.2283609,104960.0,104950.0,0.00113476]
[1750375392989,4.2283609,104960.0,104950.0,0.00213476]
[1750375393496,4.2283609,104960.0,104950.0,0.00313476]
[1750375394573,4.36777551,104960.0,104950.0,0.00313476]
[1750375394796,0.02858694,104940.0,104930.0,0.19060056]
[1750375395018,0.58773325,104930.0,104920.0,0.26686636]
[1750375395238,0.58773325,104930.0,104920.0,0.29545911]
[1750375396104,0.58773325,104930.0,104920.0,0.30498972]
[1750375396321,0.4257192,104930.0,104920.0,0.31452015]
[1750375396533,0.40665952,104930.0,104920.0,0.31652015]
[1750375396758,0.37895952,104930.0,104920.0,0.31652015]
[1750375397203,0.34113,104930.0,104920.0,0.31652015]
[1750375397416,0.35065934,104930.0,104920.0,0.31652015]
[1750375397644,0.0790876,104940.0,104930.0,0.21919263]
[1750375397866,0.2929348,104940.0,104930.0,0.21919263]
[1750375398140,0.1372148,104940.0,104930.0,0.21919263]
[1750375398345,0.12768573,104940.0,104930.0,0.21919263]
[1750375398567,0.1372148,104940.0,104930.0,0.21919263]
[1750375399014,0.12768573,104940.0,104930.0,0.21919263]
[1750375399459,0.1372148,104940.0,104930.0,0.21919263]
[1750375399677,0.12768573,104940.0,104930.0,0.21919263]
[1750375400568,0.13721471,104940.0,104930.0,0.21919263]
[1750375400870,0.12768573,104940.0,104930.0,0.22019263]
[1750375401092,0.24859813,104940.0,104930.0,0.22019263]
[1750375401336,0.05812674,104940.0,104930.0,0.22019263]
[1750375401581,0.06878554,104940.0,104930.0,0.22019263]
[1750375401836,0.05925674,104940.0,104930.0,0.22019263]
[1750375402298,0.04859813,104940.0,104930.0,0.22019263]
[1750375402523,0.04972813,104940.0,104930.0,0.22019263]
[1750375402970,0.05925674,104940.0,104930.0,0.22019263]
[1750375403420,0.0401997,104940.0,104930.0,0.22019263]
[1750375403639,0.2401997,104940.0,104930.0,0.22019263]
[1750375404058,0.0401997,104940.0,104930.0,0.22019263]
[1750375404265,0.0411997,104940.0,104930.0,0.22019263]
[1750375404479,0.25072822,104940.0,104930.0,0.22019263]
[1750375404708,0.05072813,104940.0,104930.0,0.22019263]
[1750375405136,0.06025674,104940.0,104930.0,0.22019263]
[1750375405372,0.06025665,104940.0,104930.0,0.22019263]
[1750375405846,0.06978526,104940.0,104930.0,0.22019263]
[1750375406104,0.13791406,104940.0,104930.0,0.22019263]
[1750375406323,0.32850052,104940.0,104930.0,0.220193]
[1750375406550,0.31897191,104940.0,104930.0,0.2106633]
[1750375406774,0.29991404,104940.0,104930.0,0.20113341]
[1750375406997,0.29991404,104940.0,104930.0,0.22019327]
[1750375409267,0.30944302,104940.0,104930.0,0.22972297]
[1750375411290,0.30944302,104940.0,104930.0,0.23925258]
[1750375411760,0.30944302,104940.0,104930.0,0.19160325]
[1750375412000,3.74272904,104940.0,104930.0,0.20113332]
[1750375412244,3.74272904,104940.0,104930.0,0.22019327]
[1750375412460,3.74272904,104940.0,104930.0,0.22972297]
[1750375413124,3.74272904,104940.0,104930.0,0.22972316]
[1750375413356,3.74272904,104940.0,104930.0,0.22019337]
[1750375413596,3.74272904,104940.0,104930.0,0.20113341]
[1750375413828,3.89844904,104940.0,104930.0,0.20113341]
[1750375414689,3.88891979,104940.0,104930.0,0.20113341]
[1750375414921,3.92927979,104940.0,104930.0,0.19160325]
[1750375415139,3.95791779,104940.0,104930.0,0.19160325]
[1750375415577,3.95791779,104940.0,104930.0,0.20113341]
[1750375416746,3.95791779,104940.0,104930.0,0.001]
[1750375417187,3.96683389,104940.0,104930.0,0.001]
[1750375418284,4.40210374,104940.0,104930.0,0.001]
[1750375418505,4.30683389,104940.0,104930.0,0.001]
[1750375419836,3.70364841,104930.0,104920.0,0.20968347]
[1750375420077,3.7143483,104930.0,104920.0,0.22874496]
[1750375420305,3.72387809,104930.0,104920.0,0.23827548]
[1750375421402,3.73280721,104930.0,104920.0,0.23827548]
[1750375422698,3.76144621,104930.0,104920.0,0.23927548]
[1750375423767,3.78050626,104930.0,104920.0,0.23927484]
[1750375424435,3.7805086,104930.0,104920.0,0.23927484]
[1750375424669,3.7805086,104930.0,104920.0,0.22021389]
[1750375424908,3.76144892,104930.0,104920.0,0.21068328]
[1750375425124,3.76144892,104930.0,104920.0,0.22021398]
[1750375425325,3.76144892,104930.0,104920.0,0.2297445]
[1750375425865,3.55178498,104930.0,104920.0,0.2297445]
[1750375426086,3.55178498,104930.0,104920.0,0.23927493]
[1750375427147,3.55178328,104930.0,104920.0,0.23927493]
[1750375427555,3.57084296,104930.0,104920.0,0.23927493]
[1750375428847,3.58037303,104930.0,104920.0,0.23927493]
[1750375429304,3.58037303,104930.0,104920.0,0.2297445]
[1750375429537,3.78050644,104930.0,104920.0,0.2297445]
[1750375429753,3.77097692,104930.0,104920.0,0.22021398]
[1750375429986,3.76144722,104930.0,104920.0,0.22021398]
[1750375430860,3.75191724,104930.0,104920.0,0.22021398]
[1750375431085,3.75191724,104930.0,104920.0,0.2011524]
[1750375431086,3.74238717,104930.0,104920.0,0.2011524]
[1750375431503,3.73345741,104930.0,104920.0,0.2011524]
[1750375431877,3.74238577,104930.0,104920.0,0.2011524]
[1750375432566,3.73285561,104930.0,104920.0,0.001]
[1750375432790,3.73285561,104930.0,104920.0,0.19162142]
[1750375433657,3.73285561,104930.0,104920.0,0.2011524]
[1750375434569,3.73385561,104930.0,104920.0,0.2011524]
[1750375435241,3.73385561,104930.0,104920.0,0.001]
[1750375436012,3.88953561,104930.0,104920.0,0.001]
[1750375437954,3.73385561,104930.0,104920.0,0.001]
[1750375438652,0.2001523,104920.0,104910.0,0.0001]
[1750375438878,3.71196955,104920.0,104910.0,0.0001]
[1750375439104,3.98415638,104910.0,104900.0,0.0001]
[1750375439415,3.70390518,104900.0,104890.0,0.0001]
[1750375439677,3.71283743,104900.0,104890.0,0.0001]
[1750375439890,3.74153265,104900.0,104890.0,0.0001]
[1750375440344,3.98355933,104900.0,104890.0,0.0001]
[1750375440800,4.02391933,104900.0,104890.0,0.0011]
[1750375441922,4.36391933,104900.0,104890.0,0.0011]
[1750375442132,4.37283912,104900.0,104890.0,0.0011]
[1750375442863,4.43324386,104900.0,104890.0,0.0011]
[1750375443086,4.37283912,104900.0,104890.0,0.0011]
[1750375444002,4.89995059,104900.0,104890.0,0.0011]
[1750375444215,4.9262328,104900.0,104890.0,0.0011]
[1750375444910,0.54020955,104890.0,104880.0,0.0001]
[1750375445126,4.29545348,104890.0,104880.0,0.0001]
[1750375446243,4.29645348,104890.0,104880.0,0.0001]
[1750375446687,4.25206807,104890.0,104880.0,0.20032882]
[1750375446906,4.24253455,104890.0,104880.0,0.20032882]
[1750375447388,4.24253455,104890.0,104880.0,0.20986343]
[1750375447611,4.24253455,104890.0,104880.0,0.0096347]
[1750375447831,4.23300094,104890.0,104880.0,0.0001]
[1750375448727,4.23300094,104890.0,104880.0,0.19079412]
[1750375448944,4.23300094,104890.0,104880.0,0.20032882]
[1750375449846,4.23300094,104890.0,104880.0,0.0001]
[1750375451607,4.26165394,104890.0,104880.0,0.0001]
[1750375455145,4.35693287,104890.0,104880.0,0.0001]
[1750375462817,0.20022864,104880.0,104870.0,0.0001]
[1750375463040,3.86009364,104880.0,104870.0,0.0001]
[1750375464347,3.86109364,104880.0,104870.0,0.0001]
[1750375465069,0.2098029,104860.0,104850.0,0.0001]
[1750375465305,0.01908441,104790.0,104780.0,0.24846811]
[1750375465538,0.21946463,104800.0,104780.0,0.28892811]
[1750375465767,0.34954216,104790.0,104780.0,0.48314231]
[1750375466002,0.3590845,104790.0,104780.0,0.47360707]
[1750375466225,0.38900859,104790.0,104780.0,0.48315023]
[1750375466472,0.38900859,104790.0,104780.0,0.48362254]
[1750375466712,0.37946652,104790.0,104780.0,0.48966254]
[1750375466930,0.38900868,104790.0,104780.0,0.48962254]
[1750375467156,0.38900868,104790.0,104780.0,0.48966254]
[1750375467856,0.38900868,104790.0,104780.0,0.33358254]
[1750375468295,0.38900868,104790.0,104780.0,0.48962254]
[1750375468512,0.37946652,104790.0,104780.0,0.48362254]
[1750375468737,0.38900859,104790.0,104780.0,0.48362254]
[1750375468981,0.03946652,104790.0,104780.0,0.58580147]
[1750375469202,0.01908296,104800.0,104790.0,0.21948548]
[1750375469447,0.39140773,104810.0,104800.0,0.21946454]
[1750375469661,0.39140773,104810.0,104800.0,0.54392347]
[1750375469662,0.36903525,104810.0,104800.0,0.54392347]
[1750375469870,0.36903525,104810.0,104800.0,0.60172347]
[1750375469871,0.02903525,104810.0,104800.0,0.60172347]
[1750375470362,0.01907731,104830.0,104820.0,0.21942267]
[1750375470584,0.57815517,104830.0,104820.0,0.41610267]
[1750375470790,0.57815499,104830.0,104820.0,0.41610267]
[1750375470992,0.03859985,104830.0,104820.0,0.5113816]
[1750375471216,0.04813828,104830.0,104820.0,0.5113816]
[1750375471433,0.34953843,104830.0,104820.0,0.5113816]
[1750375471648,0.34953843,104830.0,104820.0,0.51185391]
[1750375472083,0.34953843,104830.0,104820.0,0.51181391]
[1750375472511,0.34,104830.0,104820.0,0.51181391]
[1750375472732,0.34,104830.0,104820.0,0.51191391]
[1750375473564,0.35907713,104830.0,104820.0,0.51191391]
[1750375473784,0.39792122,104830.0,104820.0,0.51181391]
[1750375474042,0.37884409,104830.0,104820.0,0.51181391]
[1750375476800,0.03884409,104830.0,104820.0,0.51181391]
[1750375477227,0.3793519,104840.0,104830.0,0.21940174]
[1750375477437,0.40206523,104840.0,104830.0,0.21940174]
[1750375477892,0.43139425,104840.0,104830.0,0.21940174]
[1750375478102,0.44093241,104840.0,104830.0,0.21940174]
[1750375478724,0.4123183,104840.0,104830.0,0.21940174]
[1750375478959,0.40868065,104840.0,104830.0,0.21940174]
[1750375479166,0.40868055,104840.0,104830.0,0.21940174]
[1750375479588,0.41821862,104840.0,104830.0,0.21940174]
[1750375479800,0.40868055,104840.0,104830.0,0.21940174]
[1750375480234,0.50745961,104840.0,104830.0,0.21940174]
[1750375481077,0.49792163,104840.0,104830.0,0.21940174]
[1750375481285,0.5074597,104840.0,104830.0,0.21940174]
[1750375481500,0.46810844,104840.0,104830.0,0.21940174]
[1750375481736,0.43016384,104840.0,104830.0,0.31468067]
[1750375481952,0.43016384,104840.0,104830.0,0.37258067]
[1750375482160,0.43016384,104840.0,104830.0,0.52846067]
[1750375482801,0.43016384,104840.0,104830.0,0.47056067]
[1750375483465,0.43970145,104840.0,104830.0,0.47056067]
[1750375483671,0.43016384,104840.0,104830.0,0.47056067]
[1750375485000,0.40158476,104840.0,104830.0,0.49946067]
[1750375485231,0.40158476,104840.0,104830.0,0.52806067]
[1750375486746,0.41112228,104840.0,104830.0,0.52806067]
[1750375486947,0.40158476,104840.0,104830.0,0.52806067]
[1750375489397,0.40158476,104840.0,104830.0,0.52796067]
[1750375491912,0.40158476,104840.0,104830.0,0.34318067]
[1750375492153,0.41112237,104840.0,104830.0,0.47048067]
[1750375492367,0.41112228,104840.0,104830.0,0.47048067]
[1750375498337,0.41112228,104840.0,104830.0,0.30514206]
[1750375498565,0.48176007,104840.0,104830.0,0.31468067]
[1750375498787,0.48295998,104840.0,104830.0,0.47048067]
[1750375499011,0.46388476,104840.0,104830.0,0.47048067]
[1750375499476,0.40248476,104840.0,104830.0,0.47048067]
[1750375499720,0.03976736,104840.0,104830.0,0.54332152]
[1750375499944,0.0009,104840.0,104830.0,0.83182904]
[1750375500359,0.0009,104840.0,104830.0,0.54332152]
[1750375501296,0.0009,104840.0,104830.0,0.54340152]
[1750375501504,0.0009,104840.0,104830.0,0.47056067]
[1750375503077,0.0009,104840.0,104830.0,0.47052067]
[1750375503800,0.0009,104840.0,104830.0,0.31468067]
[1750375504023,0.0009,104840.0,104830.0,0.47056067]
[1750375509621,0.0009,104840.0,104830.0,0.83072904]
[1750375509836,0.0009,104840.0,104830.0,0.83090904]
[1750375510057,0.0009,104840.0,104830.0,0.54240152]
[1750375510956,0.0009,104840.0,104830.0,0.38652152]
[1750375511171,0.0009,104840.0,104830.0,0.54240152]
[1750375511387,0.0009,104840.0,104830.0,0.38642152]
[1750375511601,0.0009,104840.0,104830.0,0.48526152]
[1750375512046,0.0009,104840.0,104830.0,0.32922152]
[1750375512261,0.0009,104840.0,104830.0,0.48534152]
[1750375514653,0.0009,104840.0,104830.0,0.52570152]
[1750375520238,0.0009,104840.0,104830.0,0.52580152]
[1750375520866,0.0009,104840.0,104830.0,0.52570152]
[1750375522571,0.0009,104840.0,104830.0,0.36958152]
[1750375522785,0.0283,104840.0,104830.0,0.52550152]
[1750375524187,0.0274,104840.0,104830.0,0.52550152]
[1750375524403,0.0274,104840.0,104830.0,0.36958152]
[1750375524620,0.06278258,104850.0,104840.0,0.21938081]
[1750375524846,0.06368258,104850.0,104840.0,0.35501974]
[1750375525059,0.06368258,104850.0,104840.0,0.51089974]
[1750375525479,0.06368258,104850.0,104840.0,0.35501974]
[1750375525690,0.06368258,104850.0,104840.0,0.51089974]
[1750375526119,0.06368258,104850.0,104840.0,0.35501974]
[1750375526330,0.06368258,104850.0,104840.0,0.51085974]
[1750375527570,0.43108258,104850.0,104840.0,0.51085974]
[1750375530236,0.43108258,104850.0,104840.0,0.51081974]
[1750375530608,0.44061919,104850.0,104840.0,0.35501974]
[1750375530816,0.43108258,104850.0,104840.0,0.51081974]
[1750375537692,0.45398611,104850.0,104840.0,0.51081974]
[1750375539856,0.45398611,104850.0,104840.0,0.35501974]
[1750375540018,0.45398611,104850.0,104840.0,0.51081974]
[1750375540208,0.45398611,104850.0,104840.0,0.35501974]
[1750375540695,0.45398611,104850.0,104840.0,0.51081974]
[1750375541552,0.46352272,104850.0,104840.0,0.35501974]
[1750375541774,0.70689556,104850.0,104840.0,0.23112688]
[1750375541985,0.69735868,104850.0,104840.0,0.04036]
[1750375542198,0.6638092,104850.0,104840.0,0.35610513]
[1750375542413,0.59634204,104850.0,104830.0,0.23847869]
[1750375542624,0.59750204,104850.0,104840.0,0.36564347]
[1750375542863,0.59750204,104850.0,104840.0,0.37518163]
[1750375543073,0.65460204,104850.0,104840.0,0.37518163]
[1750375543406,0.64506479,104850.0,104840.0,0.20030522]
[1750375543621,0.6081032,104840.0,104830.0,0.20986294]
[1750375543819,0.44977801,104840.0,104830.0,0.41556155]
[1750375544053,0.44977764,104840.0,104830.0,0.41556155]
[1750375544284,0.44977727,104840.0,104830.0,0.25976155]
[1750375544489,0.44977727,104840.0,104830.0,0.41556155]
[1750375544687,0.45931543,104840.0,104830.0,0.41556155]
[1750375544900,0.65962056,104840.0,104830.0,0.20986294]
[1750375545109,0.07573713,104830.0,104820.0,0.21035454]
[1750375545432,0.07573713,104830.0,104820.0,0.50179347]
[1750375545433,0.43481472,104830.0,104820.0,0.50179347]
[1750375545650,0.43481472,104830.0,104820.0,0.30563347]
[1750375546072,0.42527574,104830.0,104820.0,0.50179347]
[1750375546281,0.43481463,104830.0,104820.0,0.50179347]
[1750375546969,0.43481463,104830.0,104820.0,0.30663347]
[1750375547184,0.63513951,104830.0,104820.0,0.20181548]
[1750375547401,0.43481518,104830.0,104820.0,0.42659486]
[1750375548049,0.44435425,104830.0,104820.0,0.42659486]
[1750375548264,0.44435425,104830.0,104820.0,0.42859486]
[1750375549355,0.63513988,104830.0,104820.0,0.21335564]
[1750375549573,0.62560118,104830.0,104820.0,0.42859514]
[1750375550207,0.61606229,104830.0,104820.0,0.42859514]
[1750375550438,0.61606229,104830.0,104820.0,0.23243514]
[1750375550648,0.61606229,104830.0,104820.0,0.38823514]
[1750375550856,0.42527721,104830.0,104820.0,0.24197411]
[1750375551067,0.42527721,104830.0,104820.0,0.39777411]
[1750375551941,0.41573768,104830.0,104820.0,0.39777411]
[1750375553450,0.41573713,104830.0,104820.0,0.39777411]
[1750375553660,0.42527602,104830.0,104820.0,0.39777411]
[1750375553841,0.41573695,104830.0,104820.0,0.39777411]
[1750375554337,0.42527574,104830.0,104820.0,0.39777411]
[1750375554966,0.42617574,104830.0,104820.0,0.39777411]
[1750375555837,0.43571472,104830.0,104820.0,0.39777411]
[1750375556048,0.42617574,104830.0,104820.0,0.39777411]
[1750375556262,0.43571472,104830.0,104820.0,0.39777411]
[1750375556478,0.42617574,104830.0,104820.0,0.39777411]
[1750375556721,4.1464355,104830.0,104820.0,0.00347231]
[1750375556952,0.6275443,104810.0,104800.0,0.20992338]
[1750375557171,0.07764296,104800.0,104790.0,0.21004268]
[1750375557399,0.09672628,104800.0,104790.0,0.38506273]
[1750375558528,0.28756597,104800.0,104790.0,0.38506273]
[1750375558741,0.09672628,104800.0,104790.0,0.38506273]
[1750375558953,0.12508702,104800.0,104790.0,0.38506273]
[1750375559163,0.12508702,104800.0,104790.0,0.38706273]
[1750375561243,0.3254686,104800.0,104790.0,0.38706273]
[1750375561450,0.3254686,104800.0,104790.0,0.23126273]
[1750375561680,0.3254686,104800.0,104790.0,0.00223481]
[1750375561681,0.56989876,104800.0,104790.0,0.00223481]
[1750375561905,4.2312724,104800.0,104790.0,0.00223481]
[1750375562156,4.10244399,104800.0,104790.0,0.00223481]
[1750375562375,4.09290219,104800.0,104790.0,0.00223481]
[1750375563732,4.09490219,104800.0,104790.0,0.00223481]
[1750375563987,4.19017204,104800.0,104790.0,0.00023481]
[1750375564425,4.09690219,104800.0,104790.0,0.00023481]
[1750375567928,4.12557919,104800.0,104790.0,0.00023481]
[1750375568752,4.15415827,104800.0,104790.0,0.00023481]
[1750375573863,0.49182631,104800.0,104790.0,0.21972056]
[1750375574083,0.11317037,104800.0,104790.0,0.22926281]
[1750375574305,0.45435037,104800.0,104790.0,0.22926281]
[1750375574544,0.44480857,104800.0,104790.0,0.22926281]
[1750375574972,0.43526695,104800.0,104790.0,0.22926281]
[1750375575191,0.44480847,104800.0,104790.0,0.22926281]
[1750375575660,0.46389198,104800.0,104790.0,0.22926281]
[1750375575875,0.45435009,104800.0,104790.0,0.22926281]
[1750375576528,0.43526695,104800.0,104790.0,0.22926281]
[1750375577191,0.44480857,104800.0,104790.0,0.22926281]
[1750375577862,0.42572561,104800.0,104790.0,0.22926281]
[1750375578053,0.43526677,104800.0,104790.0,0.22926281]
[1750375578305,0.65340655,104800.0,104790.0,0.00023481]
[1750375578523,4.19838756,104800.0,104790.0,0.00023481]
[1750375578774,4.16789218,104800.0,104790.0,0.00023481]
[1750375578955,4.3282873,104800.0,104790.0,0.00023481]
[1750375579205,4.1722873,104800.0,104790.0,0.00023481]
[1750375579425,4.11525938,104800.0,104790.0,0.00023481]
[1750375580535,4.15320398,104800.0,104790.0,0.00023481]
[1750375583617,4.1246249,104800.0,104790.0,0.00023481]
[1750375584283,4.1255249,104800.0,104790.0,0.00023481]
[1750375584727,4.1824418,104800.0,104790.0,0.00023481]
[1750375584942,4.3383218,104800.0,104790.0,0.00023481]
[1750375585215,4.3669968,104800.0,104790.0,0.00023481]
[1750375585668,4.3736973,104800.0,104790.0,0.00023481]
[1750375586454,4.2178173,104800.0,104790.0,0.00023481]
[1750375586672,4.13690308,104800.0,104790.0,0.00023481]
[1750375588565,4.13808308,104800.0,104790.0,0.00023481]
[1750375589620,4.16548308,104800.0,104790.0,0.00023481]
[1750375589832,4.15878258,104800.0,104790.0,0.00023481]
[1750375590049,4.16548597,104800.0,104790.0,0.00023481]
[1750375590895,4.19435338,104800.0,104790.0,0.00023481]
[1750375591344,4.1943535,104800.0,104790.0,0.00023481]
[1750375593813,4.0384735,104800.0,104790.0,0.00023481]
[1750375594023,4.1943535,104800.0,104790.0,0.00023481]
[1750375596523,4.2133258,104800.0,104790.0,0.00023481]
[1750375599420,4.27434732,104800.0,104790.0,0.00023481]
[1750375599936,4.41002625,104800.0,104790.0,0.00023481]
[1750375600199,4.41002651,104800.0,104790.0,0.00023481]
[1750375601693,4.41002946,104800.0,104790.0,0.00023481]
[1750375601910,4.25783363,104800.0,104790.0,0.00023481]
[1750375602134,4.23043363,104800.0,104790.0,0.20063551]
[1750375602361,4.2317401,104800.0,104790.0,0.21017813]
[1750375602594,4.22503582,104800.0,104790.0,0.21017813]
[1750375602814,4.22503582,104800.0,104790.0,0.21972066]
[1750375603035,4.22503582,104800.0,104790.0,0.21017813]
[1750375603253,4.22503582,104800.0,104790.0,0.21972066]
[1750375603467,4.22503582,104800.0,104790.0,0.21017813]
[1750375603684,4.22503582,104800.0,104790.0,0.21972066]
[1750375603973,4.22503582,104800.0,104790.0,0.20063551]
[1750375604191,4.27993582,104800.0,104790.0,0.20063551]
[1750375605067,4.27993582,104800.0,104790.0,0.21017822]
[1750375605321,4.27993582,104800.0,104790.0,0.20063551]
[1750375606049,4.24179737,104800.0,104790.0,0.20063551]
[1750375606320,4.27993582,104800.0,104790.0,0.20063551]
[1750375606543,4.28664514,104800.0,104790.0,0.20063551]
[1750375606761,4.20139737,104800.0,104790.0,0.21017813]
[1750375607419,4.20139737,104800.0,104790.0,0.20063551]
[1750375607653,4.23953582,104800.0,104790.0,0.20063551]
[1750375610579,4.23953582,104800.0,104790.0,0.21017813]
[1750375610804,4.20139737,104800.0,104790.0,0.21017813]
[1750375612853,4.20142575,104800.0,104790.0,0.21017813]
[1750375613524,4.20142575,104800.0,104790.0,0.20063551]
[1750375613750,4.2395642,104800.0,104790.0,0.20063551]
[1750375613971,4.2395642,104800.0,104790.0,0.19109271]
[1750375614654,4.2404642,104800.0,104790.0,0.00023481]
[1750375617359,4.24717209,104800.0,104790.0,0.00023481]
[1750375618989,4.24717215,104800.0,104790.0,0.00023481]
[1750375619915,4.31121701,104800.0,104790.0,0.00023481]
[1750375620139,4.24717215,104800.0,104790.0,0.00023481]
[1750375620842,4.21854973,104800.0,104790.0,0.00023481]
[1750375621066,4.31382866,104800.0,104790.0,0.00023481]
[1750375621406,4.34244812,104800.0,104790.0,0.00023481]
[1750375621868,4.38284812,104800.0,104790.0,0.00023481]
[1750375624512,4.35422488,104800.0,104790.0,0.00023481]
[1750375625819,4.38283035,104800.0,104790.0,0.00023481]
[1750375627103,4.14405076,104800.0,104790.0,0.21017795]
[1750375627329,4.21639374,104800.0,104790.0,0.21017795]
[1750375627536,4.20685231,104800.0,104790.0,0.21017795]
[1750375627745,4.20685231,104800.0,104790.0,0.21972039]
[1750375627952,0.76285731,104800.0,104790.0,0.22926273]
[1750375628161,0.77239929,104800.0,104790.0,0.22926273]
[1750375629400,0.62732118,104800.0,104790.0,0.22926273]
[1750375631968,0.40663563,104800.0,104790.0,0.26580498]
[1750375632224,0.41617743,104800.0,104790.0,0.26580498]
[1750375632644,0.41617743,104800.0,104790.0,0.23880498]
[1750375633507,0.28008739,104800.0,104790.0,0.29542498]
[1750375633727,0.02469794,104800.0,104790.0,0.29542498]
[1750375633956,0.0018,104800.0,104790.0,0.39070391]
[1750375634201,0.3418,104800.0,104790.0,0.39070391]
[1750375635683,0.2,104810.0,104800.0,0.27746454]
[1750375635891,0.0228687,104810.0,104800.0,0.27778454]
[1750375636117,3.642815,104810.0,104800.0,0.27778454]
[1750375636328,3.4656837,104810.0,104800.0,0.43370454]
[1750375636536,0.0228687,104810.0,104800.0,0.43370454]
[1750375636746,0.08137456,104820.0,104810.0,0.2194436]
[1750375637160,0.07183449,104820.0,104810.0,0.2194436]
[1750375637360,0.27217775,104820.0,104810.0,0.20990317]
[1750375637493,0.27217775,104820.0,104810.0,0.21944378]
[1750375637687,0.30148568,104820.0,104810.0,0.2289843]
[1750375637945,0.10114242,104820.0,104810.0,0.23852473]
[1750375638294,0.12022165,104820.0,104810.0,0.23852473]
[1750375639927,0.45068167,104820.0,104810.0,0.23852473]
[1750375640321,0.44114187,104820.0,104810.0,0.23852473]
[1750375641579,0.46022165,104820.0,104810.0,0.23852473]
[1750375641778,0.45068167,104820.0,104810.0,0.23852473]
[1750375642623,0.46022165,104820.0,104810.0,0.23852473]
[1750375644078,0.48822165,104820.0,104810.0,0.23852473]
[1750375644508,0.48822165,104820.0,104810.0,0.23942473]
[1750375645347,0.47868167,104820.0,104810.0,0.23942473]
[1750375646196,0.45001067,104820.0,104810.0,0.23942473]
[1750375646628,0.45955065,104820.0,104810.0,0.23942473]
[1750375647053,0.48975065,104820.0,104810.0,0.23942473]
[1750375648331,0.690094,104820.0,104810.0,0.23942473]
[1750375648560,0.69009482,104820.0,104810.0,0.23942473]
[1750375649483,0.48975138,104820.0,104810.0,0.23942473]
[1750375650390,0.69009482,104820.0,104810.0,0.23942473]
[1750375651107,0.66147543,104820.0,104810.0,0.0009]
[1750375651330,4.1328959,104820.0,104810.0,0.0009]
[1750375658196,4.22817483,104820.0,104810.0,0.0009]
[1750375658606,4.25684683,104820.0,104810.0,0.0009]
[1750375660266,4.26356393,104820.0,104810.0,0.0009]
[1750375660478,4.25685903,104820.0,104810.0,0.0009]
[1750375660629,4.2635639,104820.0,104810.0,0.0009]
[1750375660844,4.45754235,104820.0,104810.0,0.0009]
[1750375661062,4.41940381,104820.0,104810.0,0.0009]
[1750375661297,4.45083748,104820.0,104810.0,0.0009]
[1750375662172,4.45754266,104820.0,104810.0,0.0009]
[1750375662622,4.45754266,104820.0,104810.0,0.19172148]
[1750375663818,4.45754266,104820.0,104810.0,0.0009]
[1750375665370,4.45754782,104820.0,104810.0,0.0009]
[1750375667317,4.45754763,104820.0,104810.0,0.0009]
[1750375668152,4.45083748,104820.0,104810.0,0.0009]
[1750375668360,4.45754762,104820.0,104810.0,0.0009]
[1750375669203,4.45754762,104820.0,104810.0,0.19172148]
[1750375670437,4.45754762,104820.0,104810.0,0.0009]
[1750375671069,4.45754779,104820.0,104810.0,0.0009]
[1750375673942,4.45754813,104820.0,104810.0,0.0009]
[1750375674341,4.49790813,104820.0,104810.0,0.0009]
[1750375674551,4.49790813,104820.0,104810.0,0.0018]
[1750375676390,4.49794303,104820.0,104810.0,0.0018]
[1750375676816,4.49123238,104820.0,104810.0,0.0018]
[1750375676993,4.49794384,104820.0,104810.0,0.0018]
[1750375677380,4.46930802,104820.0,104810.0,0.0018]
[1750375679231,4.42894802,104820.0,104810.0,0.0018]
[1750375680561,4.42894802,104820.0,104810.0,0.19262148]
[1750375680785,4.42894802,104820.0,104810.0,0.0018]
[1750375681189,4.42772802,104820.0,104810.0,0.19262148]
[1750375681413,3.94787928,104820.0,104810.0,0.21170317]
[1750375681634,4.10245685,104820.0,104810.0,0.23078412]
[1750375681853,4.13863013,104820.0,104810.0,0.23078412]
[1750375682074,3.94782685,104820.0,104810.0,0.23078412]
[1750375682311,4.13863013,104820.0,104810.0,0.23078412]
[1750375682553,4.12909097,104820.0,104810.0,0.20216246]
[1750375682778,4.12784707,104820.0,104810.0,0.21170335]
[1750375683007,4.15648665,104820.0,104810.0,0.21170335]
[1750375683138,4.15648686,104820.0,104810.0,0.21170335]
[1750375683823,4.15648686,104820.0,104810.0,0.0018]
[1750375684041,4.36194226,104820.0,104810.0,0.0018]
[1750375684269,4.46213109,104820.0,104810.0,0.0018]
[1750375684492,4.51904799,104820.0,104810.0,0.0018]
[1750375684923,4.51904799,104820.0,104790.0,0.42207721]
[1750375684924,0.76067481,104800.0,104790.0,0.00023481]
[1750375685153,4.38749279,104800.0,104790.0,0.00023481]
[1750375685397,4.42563124,104800.0,104790.0,0.00023481]
[1750375685601,4.46101126,104800.0,104790.0,0.00023481]
[1750375686222,4.41617079,104800.0,104790.0,0.00023481]
[1750375686442,4.45430924,104800.0,104790.0,0.00023481]
[1750375686668,4.41617079,104800.0,104790.0,0.00023481]
[1750375686887,4.45430924,104800.0,104790.0,0.00023481]
[1750375687114,4.46100626,104800.0,104790.0,0.00023481]
[1750375687327,4.46200626,104800.0,104790.0,0.00023481]
[1750375687729,4.29494186,104800.0,104790.0,0.00023481]
[1750375687949,4.24233762,104800.0,104790.0,0.00023481]
[1750375688358,4.2356406,104800.0,104790.0,0.00023481]
[1750375689331,4.20700534,104800.0,104790.0,0.00023481]
[1750375694121,4.27774006,104800.0,104790.0,0.00023481]
[1750375694309,4.20700534,104800.0,104790.0,0.00023481]
[1750375695596,4.20600534,104800.0,104790.0,0.00023481]
[1750375695805,4.20700534,104800.0,104790.0,0.00023481]
[1750375696021,4.20900534,104800.0,104790.0,0.00023481]
[1750375696873,4.73875482,104800.0,104790.0,0.00023481]
[1750375697299,4.74075482,104800.0,104790.0,0.00023481]
[1750375697946,4.76939008,104800.0,104790.0,0.00023481]
[1750375699305,4.7358406,104800.0,104790.0,0.00023481]
[1750375704206,4.7367406,104800.0,104790.0,0.00023481]
[1750375704423,4.7358406,104800.0,104790.0,0.00023481]
[1750375704636,4.7367406,104800.0,104790.0,0.00023481]
[1750375707287,4.74343166,104800.0,104790.0,0.00023481]
[1750375711238,4.78157011,104800.0,104790.0,0.00023481]
[1750375714231,4.75293485,104800.0,104790.0,0.00023481]